Cogmind - Beta 12 @@@ ROGUE MODE // 2023.03.08 @ 02:28:26 Player: Runia Result: Destroyed by G-47 Trooper with Particle Gun Performance ------------- Evolutions (1) 500 Regions Visited (6) 1200 Robots Destroyed (86) 430 Value Destroyed (1875) 1875 Prototype IDs (43) 860 Alien Tech Used (0) 0 Bonus (401) 401 TOTAL SCORE: 5266 Bonus ------- High Alert Combat Kills 27 Follower Combat Kills 81 Aligned with FarCom 300 Friendly Fire -7 Cogmind --------- Core Integrity 0/400 Matter 259/300 Energy 160/160 System Corruption 10% Temperature Cool (71) Movement Rolling (210) Ox8 Location -8/Mines Parts ------- > --- POWER (1) -------- Light Nuclear Core > --- PROPULSION (2) --- Light Treads Armored Wheel > --- UTILITY (3) ------ Huge Storage Unit Experimental Core Analyzer Hardened Light Armor Plating > --- WEAPON (3) ------- Light Assault Rifle Improved Assault Rifle Grenade Launcher > --- INVENTORY (25) --- Cold Fusion Reactor Reinforced Fission Core Light Treads Advanced Myomer Leg Advanced Myomer Leg Experimental Heat Sink High-capacity Matter Pod (200) Experimental Sensor Array Improved Armor Integrity Analyzer Advanced Weapon Cycler Advanced Transmission Jammer Medium Armor Plating Hardened Light Armor Plating System Purifier AS-neutralizer No. 17b Light Assault Rifle 8R-AWN's Boregun Grenade Launcher Grenade Launcher Plasma Cutter Peak State ------------ > --- POWER ------------ Light Neutrino Core > --- PROPULSION ------- Light Treads Armored Wheel > --- UTILITY ---------- Huge Storage Unit Experimental Core Analyzer Light Armor Plating > --- WEAPON ----------- Light Assault Rifle 8R-AWN's Boregun > --- INVENTORY -------- Cold Fusion Reactor Reinforced Fission Core Light Treads Advanced Myomer Leg Advanced Myomer Leg Armored Wheel Experimental Heat Sink High-capacity Matter Pod Experimental Sensor Array Improved Armor Integrity Analyzer Advanced Weapon Cycler Advanced Transmission Jammer Medium Armor Plating Hardened Light Armor Plating Hardened Light Armor Plating System Purifier AS-neutralizer No. 17b Beamcaster Light Assault Rifle Light Assault Rifle Improved Assault Rifle Grenade Launcher Grenade Launcher Grenade Launcher Plasma Cutter [Rating: 43] Favorites ----------- Power Deuterium Engine Engine Deuterium Engine Power Core Nuclear Core Propulsion Light Treads Treads Light Treads Leg Aluminum Leg Wheel Armored Wheel Utility Hardened Light Armor Plating Device Improved Heat Sink Storage Huge Storage Unit Processor Experimental Core Analyzer Protection Hardened Light Armor Plating Weapon Light Assault Rifle Energy Gun Small Laser Ballistic Gun Light Assault Rifle Launcher Grenade Launcher Special Weapon Plasma Cutter Special Melee Weapon Improved Datajack Build | -11 -10 -10 -9 -9 -9 -8 ------- Run | Jun Mat Min Mat Min Exi Min Slots Evolved 2 | . . . 2 . . . Power . | . . . . . . . Propulsion . | . . . . . . . Utility 1 | . . . 1 . . . Weapon 1 | . . . 1 . . . Parts Attached 85 | 2 13 8 21 8 21 12 Power 7 | . . 1 1 2 2 1 Engine 4 | . . . 1 2 1 . Core 3 | . . 1 . . 1 1 Reactor . | . . . . . . . Propulsion 17 | 2 2 . 5 . 5 3 Treads 12 | 2 1 . 3 . 4 2 Leg . | . . . . . . . Wheel 5 | . 1 . 2 . 1 1 Hover . | . . . . . . . Flight . | . . . . . . . Utility 16 | . 2 1 5 2 4 2 Device 4 | . . . 2 1 1 . Storage 2 | . 1 . 1 . . . Processor 2 | . 1 . . . . 1 Hackware . | . . . . . . . Protection 8 | . . 1 2 1 3 1 Artifact . | . . . . . . . Weapon 45 | . 9 6 10 4 10 6 Energy Gun 8 | . 3 3 . . . 2 Energy Cannon . | . . . . . . . Ballistic Gun 21 | . 1 1 8 3 5 3 Ballistic Cannon . | . . . . . . . Launcher 12 | . 5 2 2 1 1 1 Special Weapon 3 | . . . . . 3 . Impact Weapon . | . . . . . . . Slashing Weapon . | . . . . . . . Piercing Weapon . | . . . . . . . Special Melee Weapon 1 | . . . . . 1 . Unidentified Prototypes . | . . . . . . . Parts Lost 21 | . 1 . 2 3 8 7 Power 4 | . 1 . . 1 1 1 Propulsion 3 | . . . . . 1 2 Utility 6 | . . . 1 2 2 1 Weapon 8 | . . . 1 . 4 3 Highest Loss Streak 8 | . 1 . 1 2 8 4 To Critical Strikes 6 | . . . . . 6 . Average Slot Usage (%) 95 | . 84 93 98 96 98 95 Engine 8 | . 11 . 10 8 9 . Core 1 | . . 7 . . 1 9 Treads 12 | . 17 14 11 11 11 15 Wheel 10 | . 10 14 11 11 10 6 Device 5 | . . . 9 6 7 . Storage 11 | . 14 14 11 11 11 11 Protection 11 | . . 12 11 15 14 11 Energy Gun 3 | . 13 10 . . . 1 Ballistic Gun 25 | . 14 14 32 32 26 29 Naked Turns . | . . . . . . . Heaviest Build 110 | 10 47 54 102 102 110 99 Greatest Support 40 | 40 40 16 16 12 40 40 Greatest Overweight (x) 9 | . 2 3 8 8 9 8 Average Overweight (x) 5 | . 1 2 5 7 8 5 Largest Inventory Capacity 25 | 8 20 20 25 25 25 25 Average Capacity 23 | 8 19 20 22 25 25 25 Most Carried 25 | 6 18 19 25 25 25 25 Average Carried 20 | 4 10 18 21 24 22 22 Final Capacity 25 | 8 20 20 25 25 25 25 Final Carried 25 | 2 17 19 24 25 25 20 Class Distribution -------------------- 41% | Mutant 24% | Tank 21% | Scavenger-Tank 11% | Scavenger-Mutant Dominant Class ---------------- Mutant | -10/Materials Mutant | -10/Mines Tank | -9/Materials Scavenger-Tank | -9/Mines Mutant | -9/Exiles Scavenger-Mutant | -8/Mines Resources | -11 -10 -10 -9 -9 -9 -8 ----------- Run | Jun Mat Min Mat Min Exi Min Matter Collected 2714 | 198 462 141 732 150 832 199 Remotely . | . . . . . . . Salvage Created 2923 | . 659 168 1307 164 444 181 Parts 243 | . 42 13 84 16 81 7 Haulers Intercepted 5 | . 2 . 3 . . . Recyclers Shooed 4 | . 1 . 2 1 . . Parts Field Recycled . | . . . . . . . Retrieved Matter . | . . . . . . . Parts Self-Destructed . | . . . . . . . Prevented . | . . . . . . . Kills | -11 -10 -10 -9 -9 -9 -8 ------- Run | Jun Mat Min Mat Min Exi Min Combat Hostiles Destroyed 68 | . 18 9 26 6 5 4 Guns 43 | . 13 2 22 2 1 3 AOE 25 | . 5 7 4 4 4 1 Classes Destroyed 14 | . 6 . 4 1 2 1 Worker 2 | . 1 . 1 . . . Builder 1 | . . . 1 . . . Tunneler 1 | . . . 1 . . . Hauler 5 | . 2 . 3 . . . Recycler 5 | . 1 . 3 1 . . Operator 2 | . . . 2 . . . Turret 1 | . . . . . 1 . Watcher 3 | . 1 . 2 . . . Swarmer 26 | . 6 6 11 3 . . Grunt 30 | . 12 3 10 2 . 3 Sentry 5 | . . . 5 . . . Demolisher 1 | . . . . 1 . . Hunter 1 | . . . . . . 1 Assembled 4 | . . . . . 4 . Best Kill Streak 8 | . 4 3 8 3 4 2 Combat Bots Only 5 | . 3 3 5 3 4 2 Max Kills in Single Turn 4 | . 2 2 4 3 2 1 Gunslinging 1 | . 1 . . . . . Exploded 3 | . 2 2 3 3 2 1 Melee . | . . . . . . . Uniques/NPCs Destroyed 4 | . . . . . 4 . 8R-AWN (-9/Exiles) EX-DEC (-9/Exiles) EX-BIN (-9/Exiles) EX-HEX (-9/Exiles) Combat | -11 -10 -10 -9 -9 -9 -8 -------- Run | Jun Mat Min Mat Min Exi Min Damage Taken 3802 | . 474 223 786 405 919 995 Core 542 | . 95 39 41 83 121 163 Absorbed by Shields . | . . . . . . . Core Remaining (%) 73 | 100 . 46 . . . . Volleys Fired 293 | . 71 18 76 13 91 24 Largest 3 | . 2 2 3 3 3 3 Hottest 118 | . 60 60 80 60 63 118 Shots Fired 625 | . 133 29 223 35 161 44 Gun 563 | . 127 22 221 33 118 42 Cannon . | . . . . . . . Launcher 24 | . 6 7 2 2 5 2 Special 38 | . . . . . 38 . Kinetic 482 | . 65 11 216 33 118 39 Thermal 119 | . 62 11 5 . 38 3 Explosive 24 | . 6 7 2 2 5 2 Electromagnetic . | . . . . . . . Robot Hit Streak 20 | . 10 4 9 8 20 11 Robot Miss Streak 6 | . 5 2 5 2 6 3 Penetration Max 1 | . . . . . 1 1 Secondary Targets 5 | . 2 . 3 . . . Max Gunslinging Chain 1 | . 1 . 1 . . . Shots Hit Robots 405 | . 86 15 127 21 125 31 Core Hits 190 | . 46 14 71 9 39 11 Critical Kills 4 | . . . . . 4 . Critical Parts Destroyed 8 | . . . 1 . 5 2 Critical Strikes 16 | . . . 1 . 10 5 Burn 1 | . . . . . . 1 Destroy 14 | . . . 1 . 9 4 Sever 1 | . . . . . 1 . Melee Attacks 6 | . . . . . 6 . Impact . | . . . . . . . Slashing . | . . . . . . . Piercing . | . . . . . . . Sneak Attacks 6 | . . . . . 6 . Combat Hostiles . | . . . . . . . Follow-up Attacks . | . . . . . . . Damage Inflicted 6062 | . 1243 561 1834 410 1486 528 Guns 4112 | . 858 133 1480 177 1113 351 Cannons . | . . . . . . . Explosions 1781 | . 385 428 334 233 224 177 Melee . | . . . . . . . Ramming 20 | . . . 20 . . . Kinetic 3437 | . 373 45 1439 177 1113 290 Thermal 824 | . 485 88 41 . 149 61 Explosive 1781 | . 385 428 334 233 224 177 Electromagnetic . | . . . . . . . Impact . | . . . . . . . Slashing . | . . . . . . . Piercing . | . . . . . . . Highest Corruption 10 | . . . . . . 10 Average Corruption 6 | . . . . . . 6 Corruption Purged . | . . . . . . . Corruption Blocked . | . . . . . . . Effects 10 | . . . . . . 10 Message Errors 2 | . . . . . . 2 Matter Fused 1 | . . . . . . 1 Heat Flow Errors 3 | . . . . . . 3 Energy Discharges 2 | . . . . . . 2 Data Loss (minor) 2 | . . . . . . 2 Overload Shots . | . . . . . . . Overflow Damage 111 | . 3 36 8 40 24 . Projectiles 22 | . . . . . 22 . Explosions 89 | . 3 36 8 40 2 . Melee . | . . . . . . . Knockbacks . | . . . . . . . Impact . | . . . . . . . Kinetic . | . . . . . . . Secondary . | . . . . . . . Self-Inflicted Damage 136 | . 6 51 10 29 4 36 Shots 9 | . 1 3 . 2 1 2 Rammed 1 | . . . 1 . . . Targets Rammed 1 | . . . 1 . . . Kicked . | . . . . . . . Crushed . | . . . . . . . Highest Temperature 235 | . 64 123 235 36 226 169 Average Temperature 54 | . 22 57 88 17 80 58 Received Heat Transfer 804 | . 216 78 297 48 . 165 Siege Activations . | . . . . . . . Robots Corrupted . | . . . . . . . Combat Hostiles . | . . . . . . . Parts Fried 2 | . . . 2 . . . Impact Corruptions 1 | . . . 1 . . . Robots Melted . | . . . . . . . Combat Hostiles . | . . . . . . . Parts Melted 10 | . 1 1 . . 8 . Heat Transferred 2162 | . 1125 200 100 . 552 185 Parts Sabotaged . | . . . . . . . Parts Stolen . | . . . . . . . Parts Stripped . | . . . . . . . Power Chain Reactions . | . . . . . . . Missiles Intercepted . | . . . . . . . Alert | -11 -10 -10 -9 -9 -9 -8 ------- Run | Jun Mat Min Mat Min Exi Min Peak Influence 441 | . 240 269 441 347 . 66 Initial 163 | . . 93 60 163 . . Average 199 | . 104 159 297 229 . 28 Maximum Alert Level 2 | . 1 1 2 1 . . Low Security (%) 48 | 100 82 70 17 32 . 100 Level 1 44 | . 17 29 63 67 . . Level 2 6 | . . . 19 . . . Level 3 . | . . . . . . . Level 4 . | . . . . . . . Level 5 . | . . . . . . . High Security . | . . . . . . . Max Security . | . . . . . . . Squads Dispatched 9 | . 4 1 2 2 . . Investigation 6 | . 4 1 . 1 . . Extermination . | . . . . . . . Reinforcement 2 | . . . 2 . . . Assault 1 | . . . . 1 . . Garrison . | . . . . . . . Intercept . | . . . . . . . Searches Triggered . | . . . . . . . Construction Impeded . | . . . . . . . Haulers Reinforced . | . . . . . . . Active Scanning Responses . | . . . . . . . Cargo Convoy Interrupts . | . . . . . . . Stealth | -11 -10 -10 -9 -9 -9 -8 --------- Run | Jun Mat Min Mat Min Exi Min Distress Signals 4 | . 2 . 2 . . . Communications Jammed . | . . . . . . . Distress Signals . | . . . . . . . Times Spotted 122 | . 26 8 44 5 31 8 Peak Tracking Total 9 | . 4 3 4 4 9 3 Tactical Retreats 15 | . . . 1 . 13 1 Traps | -11 -10 -10 -9 -9 -9 -8 ------- Run | Jun Mat Min Mat Min Exi Min Traps Triggered 2 | . 2 . . . . . Indirectly . | . . . . . . . Trap Hack Attempts . | . . . . . . . Triggered . | . . . . . . . Disarmed . | . . . . . . . Reprogrammed . | . . . . . . . Reused . | . . . . . . . Traps Extracted . | . . . . . . . Installed . | . . . . . . . Triggered 1 | . . . . 1 . . Exploded 3 | . . . . . 3 . Machines | -11 -10 -10 -9 -9 -9 -8 ---------- Run | Jun Mat Min Mat Min Exi Min Machines Disabled 7 | . . . 1 1 5 . Max in Single Turn 2 | . . . 1 1 2 . Machines Repaired . | . . . . . . . Machines Sabotaged . | . . . . . . . Overloaded Fab Kills . | . . . . . . . Hacking | -11 -10 -10 -9 -9 -9 -8 --------- Run | Jun Mat Min Mat Min Exi Min Machines Accessed 15 | . 5 2 5 1 2 . Terminals 11 | . 5 1 4 1 . . Fabricators . | . . . . . . . Repair Stations . | . . . . . . . Recycling Units . | . . . . . . . Scanalyzers 1 | . . . 1 . . . Garrison Access . | . . . . . . . Total Hacks 41 | . 18 6 9 6 2 . Successful 14 | . 6 1 3 2 2 . Failed 27 | . 12 5 6 4 . . Catastrophic 3 | . 1 1 . 1 . . Database Lockouts . | . . . . . . . Manual 26 | . 10 5 4 6 1 . Terminals 37 | . 18 5 8 6 . . Fabricators . | . . . . . . . Repair Stations . | . . . . . . . Recycling Units . | . . . . . . . Scanalyzers 1 | . . . 1 . . . Garrison Access . | . . . . . . . Terminal Hacks 13 | . 6 1 2 2 2 . Record 1 | . . . . . 1 . Part Schematic 1 | . 1 . . . . . Robot Analysis 1 | . . . 1 . . . Prototype ID Bank 3 | . 2 . . 1 . . Open Door 1 | . . 1 . . . . Branch Access Points 1 | . 1 . . . . . Locate Traps 1 | . . . 1 . . . Hauler Manifests 1 | . 1 . . . . . Zone Layout 2 | . 1 . . 1 . . EX-Prototype ID Bank 1 | . . . . . 1 . Fabricator Hacks . | . . . . . . . Repair Station Hacks . | . . . . . . . Recycling Unit Hacks . | . . . . . . . Scanalyzer 1 | . . . 1 . . . Insert Component 1 | . . . 1 . . . Garrison Access Hacks . | . . . . . . . Unauthorized Hacks . | . . . . . . . Terminals . | . . . . . . . Fabricators . | . . . . . . . Repair Stations . | . . . . . . . Recycling Units . | . . . . . . . Scanalyzers . | . . . . . . . Garrison Access . | . . . . . . . Data Cores Recovered . | . . . . . . . Used . | . . . . . . . Hacking Detections 10 | . 5 1 3 1 . . Full Trace Events 4 | . 2 1 . 1 . . Feedback Events . | . . . . . . . Feedback Blocked . | . . . . . . . Robot Schematics Acquired . | . . . . . . . Robots Built . | . . . . . . . Authchips . | . . . . . . . Time . | . . . . . . . Total Robot Build Rating . | . . . . . . . Part Schematics Acquired 1 | . 1 . . . . . Parts Built . | . . . . . . . Authchips . | . . . . . . . Time . | . . . . . . . Total Part Build Rating . | . . . . . . . Parts Repaired . | . . . . . . . Time . | . . . . . . . Parts Recycled . | . . . . . . . Recycled Matter . | . . . . . . . Retrieved Matter . | . . . . . . . Retrieved Components . | . . . . . . . Parts Scanalyzed . | . . . . . . . Part Schematics Acquired . | . . . . . . . Parts Damaged . | . . . . . . . Bothacking | -11 -10 -10 -9 -9 -9 -8 ------------ Run | Jun Mat Min Mat Min Exi Min Used RIF Installer . | . . . . . . . Robots Hacked 5 | . . . . . 5 . Non-combat 3 | . . . . . 3 . Combat 2 | . . . . . 2 . Robot Hacks Applied 6 | . . . . . 6 . parse_system 6 | . . . . . 6 . Relay Couplers Released . | . . . . . . . Fabnet Peak Effective % . | . . . . . . . Robots Rewired . | . . . . . . . Allies Hacked . | . . . . . . . Hacks Repelled . | . . . . . . . Allies | -11 -10 -10 -9 -9 -9 -8 -------- Run | Jun Mat Min Mat Min Exi Min Total Allies 3 | . . . . 3 . . Largest Group 3 | . . . . 3 2 . Highest-Rated Group 80 | . . . . 80 49 . Highest-Rated Ally 31 | . . . . 31 31 . Total Orders . | . . . . . . . Ally Attacks 33 | . . . . 28 5 . Total Damage 444 | . . . . 380 64 . Kills 6 | . . . . 5 1 . Allies Corrupted . | . . . . . . . Allies Melted . | . . . . . . . Intel | -11 -10 -10 -9 -9 -9 -8 ------- Run | Jun Mat Min Mat Min Exi Min Robot Analysis Total 1 | . . . 1 . . . Derelict Logs Recovered 3 | . . 1 . 2 . . Drone Launches . | . . . . . . . Drone Recoveries . | . . . . . . . Exploration | -11 -10 -10 -9 -9 -9 -8 ------------- Run | Jun Mat Min Mat Min Exi Min Turns Passed 6795 | 5 1014 642 1520 903 2395 316 Spaces Moved 3024 | 1 523 407 644 413 939 97 Core . | . . . . . . . Treads 134 | 1 91 . . . 4 38 Legs . | . . . . . . . Wheels 2890 | . 432 407 644 413 935 59 Hover . | . . . . . . . Flight . | . . . . . . . Fastest Speed 130 | 160 130 130 145 195 195 195 Average Speed 184 | 160 147 141 179 206 211 247 Slowest Speed 320 | 160 240 145 210 210 320 320 Overloaded Moves . | . . . . . . . Propulsion Burnouts . | . . . . . . . Robots Hopped . | . . . . . . . Cave-ins Triggered . | . . . . . . . Exploration Rate (%) 61 | 2 85 84 49 93 86 32 Regions Visited 6 Branch Regions 4 Pre-discovered Areas 2 | . . 1 . . 1 . Known Exits Taken 1 | . 1 . . . . . Unknown Exits Taken 5 | 1 . 1 1 1 1 . Scrap Searched 2 | . . 1 . 1 . . Spaces Dug 101 | . 24 42 3 13 10 9 Terrain Destroyed 165 | . 46 50 5 19 25 20 Melee . | . . . . . . . Projectile 12 | . . . . . 8 4 AOE 151 | . 46 50 5 19 15 16 Terrain Rammed . | . . . . . . . Walls Destroyed . | . . . . . . . Machines Disabled . | . . . . . . . Actions | -11 -10 -10 -9 -9 -9 -8 --------- Run | Jun Mat Min Mat Min Exi Min Total 3716 | 6 641 443 860 438 1193 135 Wait 208 | . 15 6 83 3 100 1 Move 3018 | . 522 406 643 412 938 97 Hop . | . . . . . . . Pick Up 61 | . 17 3 17 1 22 1 Fast Attach 11 | . 2 1 3 3 1 1 Attach 23 | 2 . 1 3 1 10 6 Detach . | . . . . . . . Swap 51 | . 11 6 15 4 10 5 Drop 44 | 4 3 2 19 1 15 . Fire 293 | . 71 18 76 13 91 24 Melee 6 | . . . . . 6 . Ram 1 | . . . 1 . . . Kick . | . . . . . . . Crush . | . . . . . . . Escape Stasis . | . . . . . . . Rewire . | . . . . . . . Trap . | . . . . . . . Miscellaneous . | . . . . . . . Route ------- -11/Junkyard -10/Materials (discovered 4 exits: *Mat x3 / *Min) -10/Mines -9/Materials (discovered 2 exits: [*Mat] / *Min) -9/Mines (discovered 2 exits: [*Mat] / *Exi) -9/Exiles -8/Mines History --------- Turn | Location | Event 6 | -11/Junkyard | Discovered new exit (range 0) 6 | -11/Junkyard | Entered Materials 310 | -10/Materials | Build established: Mutant 401 | -10/Materials | Discovered new exit (range 10) 616 | -10/Materials | Discovered new exit (range 3) 821 | -10/Materials | Discovered new exit (range 9) 823 | -10/Materials | Identified exit to Mines 1020 | -10/Materials | Entered Mines 1056 | -10/Mines | Learned location of Zion (-6) 1078 | -10/Mines | Met a Derelict bent on vengeance 1245 | -10/Mines | Core integrity fell below 50% 1286 | -10/Mines | Met a Derelict shopkeep closing up shop 1385 | -10/Mines | Discovered new exit (range 9) 1662 | -10/Mines | Entered Materials 1662 | -9/Materials | Evolved 2 slots: Utility x1, Weapon x1 2207 | -9/Materials | Build established: Scavenger-Tank 2231 | -9/Materials | Discovered new exit (range 8) 2603 | -9/Materials | Build established: Tank 3052 | -9/Materials | Discovered new exit (range 4) 3182 | -9/Materials | Entered Mines 3201 | -9/Mines | Found a damaged Exp. Sensor Array with a note attached 3205 | -9/Mines | Found Prototype Device 3316 | -9/Mines | Assembled infested the area 3391 | -9/Mines | Learned Materials stockpile data 3447 | -9/Mines | Discovered new exit (range 15) 3509 | -9/Mines | Learned Materials interactive machine intel 3716 | -9/Mines | Met a Derelict testing a Signal Generator 3893 | -9/Mines | Build established: Scavenger-Tank 4077 | -9/Mines | Deemed a non-threat by the Exiles lab entrance 4077 | -9/Mines | Discovered new exit (range 5) 4085 | -9/Mines | Entered Exiles 4085 | -9/Exiles | Accompanied by 2 allies 4176 | -9/Exiles | Met 8R-AWN 4214 | -9/Exiles | Met EX-HEX 4325 | -9/Exiles | Met EX-DEC 4735 | -9/Exiles | Met EX-BIN 4823 | -9/Exiles | Build established: Mutant 5081 | -9/Exiles | Aligned with FarCom system 5083 | -9/Exiles | Given EX-Vault access code 5131 | -9/Exiles | Opened EX-Vault 5179 | -9/Exiles | Warned to stay clear of 0b10 Research branches 5459 | -9/Exiles | Attacked by the Exiles 5630 | -9/Exiles | Core integrity fell below 50% 5683 | -9/Exiles | Destroyed 8R-AWN 5691 | -9/Exiles | Found 8R-AWN's Boregun 5694 | -9/Exiles | Found AS-neutralizer No. 17b 5703 | -9/Exiles | Lost 8 parts (1p1n2u4w) 6113 | -9/Exiles | Build established: Scavenger-Mutant 6161 | -9/Exiles | Destroyed EX-DEC 6170 | -9/Exiles | Found Exp. Core Analyzer 6199 | -9/Exiles | Destroyed EX-BIN 6239 | -9/Exiles | Destroyed EX-HEX 6325 | -9/Exiles | Found System Purifier 6462 | -9/Exiles | Discovered new exit (range 10) 6480 | -9/Exiles | Entered Mines 6494 | -8/Mines | NK-0LA came to Exiles' defense 6506 | -8/Mines | Core integrity fell below 20% 6560 | -8/Mines | Lost 4 parts (1p1n1u1w) 6788 | -8/Mines | System corruption reached 10% 6796 | -8/Mines | Destroyed by G-47 Trooper with Particle Gun Last Messages --------------- 06685_ K-01 Serf collects debris. 06698_ System corrupted: Energy discharge (-59). 06723_ System corrupted: Component data lost. 06739_ Penetrated by Slug. 06741_ System corrupted: Component data lost. 06742_ Slug penetrates Wall. 06745_ Penetrated by Slug. 06745_ Lgt. Treads destroyed. 06745_ Lgt. Assault Rifle destroyed. 06747_ H-55 Commando suffers critical hit (Burn). 06747_ H-55 Commando destroyed. 06752_ Acquired 52 matter. 06757_ System corrupted: Heat flow error (+177). 06787_ C-30 ARC bursts open, deploying its payload. 06787_ B-36 Bruiser unfolds itself. 06787_ G-47 Trooper unfolds itself. 06787_ Beamcaster destroyed. 06787_ System corrupted by crushing effect (+4). 06788_ AZ1O77GOWE|>&0ZMRA|V8/,ECYVB/|I|W=HFD2J& 06792_ G-47 Trooper destroyed. Map ----- +----------------------------------------------------+ | | | | | | | | | | | | | | | | | ????????????????????????????????????????????? | | ?????????????????????######?????????????????? | | ??????????????????? #?????????????????? | | ??????????????????"" """ #?????????????????? | | ?????????????????""" """ #?????????????????? | | ???????????????? """ """ #?????????????????? | | ???????????????? #?????????????????? | | ???????????????? """ """ ######????????????? | | ?????????????????""" """ = #????????????? | | ?????????????""" """ """ #### #????????????# | | ???????????# #??# #????????????# | | ???????????????######## ###??# #????????????# | | ??????????????????????# #????# ###??????????# | | ??????????????????##### #????# ############ | | ??????????????????# #????## ## | | ??????????????????# ##### ######### #? | | ??????????????????# #???# #### ???????# #? | | ????????????????### @##???????# ??????# ## | | ??????????# # b #??????? #????## ## | | ???????????# #?????? #????# | | ???????????# g #????? #???# | | ???????????# # *% #???? #??# | | ???????????# ?# ??? #?# | | ???????????# ??# ?? """ ?# | | ???????????????### ## """ ?# ### | | ?????????????????## #? ?"" ### #??? | | ?????????????????? ##? ???? #?# #???? | | ?????????????????? #???? ????? ??# ????? | | ?????????????????? #?????#???? ??? ????? | | ?????????????????? #??????????????? ????? | | ?????????????????? ##??????????????## ?????? | | ??????????????????##?????????????????# ?????? | | ?????????????????????????????????????? ?????? | | ????????????????????????????????????????????? | | ????????????????????????????????????????????? | | ????????????????????????????????????????????? | | ????????????????????????????????????????????? | | ????????????????????????????????????????????? | | ????????????????????????????????????????????? | | ????????????????????????????????????????????? | | ????????????????????????????????????????????? | | ????????????????????????????????????????????? | +----------------------------------------------------+ Best States ------------- Heat Dissipation 54 Energy Generation 19 Energy Capacity 275 Matter Stores 300 Matter Capacity 300 Sight Range 16 Terrain Scan Density 10 Armor Coverage 375 Resistance: KI 20 Evasion (%) 40 Targeting Accuracy 5 Core Analysis 8 Recoil Reduction 2 Item Schematics ----------------- Lgt. Ion Engine | -10/Materials | Hacked Robot Schematics ------------------ None Fabricated ------------ Nothing Alien Tech Used ----------------- None Achievements -------------- None Challenges ------------ None Game ------ Seed GaussNovaAutohacker Manual? 0 Play Time 00:36:23 Cumulative 758.4 hours Start 2023.03.08 @ 01:44:04 End 2023.03.08 @ 02:28:26 Sessions 1 Manual Loads 0 Difficulty Rogue Special Mode None Game No. 664 Rogue 664 Adventurer 0 Explorer 0 Win Type - Total 35 Types 14/5/6/1/1/1/5/1/1 Lore% 93 Gallery% 97 Achievement% 81 Wizard Run 0 Options --------- ASCII 0 Keyboard 0 Movement Mouse Keybinds 1 Fullscreen 2 Font 24/Smallcaps Map View 76x50 Tactical HUD 1 Map Filters NONE Filters NONE Steam 1 RUN: 288655f5-7baf-4b13-92bc-309de54c4f5f